lending/lending_fUSD_20240504
["ID","MTS","AMOUNT","RATE_DAILY","PERIOD"]
[325391374,1714805448761,-5377.99,0.00041095,30]
[325391375,1714805448770,-500.0,0.00041095,30]
[325391376,1714805448780,-781.72,0.00041095,30]
[325391377,1714805448790,-2204.19,0.00041095,30]
[325391378,1714805448800,-1545.79,0.00041095,30]
[325391379,1714805448811,-865.29,0.00041095,30]
[325391380,1714805448820,-549.54,0.00041095,30]
[325391381,1714805448830,-500.0,0.00041095,30]
[325391382,1714805448840,-2997.25,0.00041095,30]
[325391383,1714805448850,-500.0,0.00041095,30]
[325391384,1714805448859,-500.0,0.00041095,30]
[325391385,1714805448869,-715.74,0.00041095,30]
[325391386,1714805448879,-162.7192544,0.00041095,30]
[325391387,1714805448888,-1914.19,0.00041095,30]
[325391388,1714805448898,-500.0,0.00041095,30]
[325391389,1714805448907,-2216.9,0.00041095,30]
[325391390,1714805448921,-2760.75,0.00041095,30]
[325391391,1714805448931,-500.0,0.00041095,30]
[325391392,1714805448940,-3538.07,0.00041095,30]
[325391393,1714805448950,-2261.69,0.00041095,30]
[325391394,1714805448961,-1757.01,0.00041095,30]
[325391395,1714805448971,-500.0,0.00041095,30]
[325391396,1714805448980,-607.42135028,0.00041095,30]
[325391397,1714805448992,-1500.0,0.00041095,30]
[325391398,1714805449002,-500.0,0.00041095,30]
[325391399,1714805449011,-23515.81,0.00041095,30]
[325391400,1714805449021,-500.0,0.00041095,30]
[325391401,1714805449030,-909.01,0.00041095,30]
[325391402,1714805449040,-500.0,0.00041095,30]
[325391403,1714805449050,-500.0,0.00041095,30]
[325391404,1714805449059,-2042.94,0.00041095,30]
[325391405,1714805449069,-500.0,0.00041095,30]
[325391406,1714805449078,-1090.09,0.00041095,30]
[325391407,1714805449088,-1122.32,0.00041095,30]
[325391408,1714805449098,-907.63,0.00041095,30]
[325391409,1714805449107,-500.0,0.00041095,30]
[325391410,1714805449117,-1350.45,0.00041095,30]
[325391411,1714805449126,-2171.38,0.00041095,30]
[325391412,1714805449137,-808.25,0.00041095,30]
[325391413,1714805449146,-1120.42,0.00041095,30]
[325391414,1714805449156,-500.0,0.00041095,2]
[325391415,1714805449166,-560.61232887,0.00041095,30]
[325391416,1714805449176,-2624.02,0.00041095,30]
[325391417,1714805449185,-1350.5,0.00041095,30]
[325391418,1714805449195,-500.0,0.00041095,30]
[325391419,1714805449205,-16660.75,0.00041095,30]
[325391420,1714805449214,-727.84,0.00041095,30]
[325391421,1714805449224,-2545.36,0.00041095,30]
[325391422,1714805449233,-500.0,0.00041095,30]
[325391423,1714805449244,-500.0,0.00041095,30]
[325391424,1714805449254,-500.0,0.00041095,30]
[325391425,1714805449264,-3766.31,0.00041095,30]
[325391426,1714805449273,-500.0,0.00041095,30]
[325391427,1714805449283,-677.98,0.00041095,30]
[325391428,1714805449292,-10843.67,0.00041095,30]
[325391429,1714805449302,-905.4,0.00041095,30]
[325391430,1714805449311,-3702.19,0.00041095,30]
[325391431,1714805449321,-1601.64,0.00041095,30]
[325391432,1714805449331,-1677.8,0.00041095,30]
[325391433,1714805449340,-500.0,0.00041095,30]
[325391434,1714805449350,-4033.07,0.00041095,30]
[325391435,1714805449360,-2781.65,0.00041095,30]
[325391436,1714805449370,-500.0,0.00041095,30]
[325391437,1714805449379,-500.0,0.00041095,30]
[325391438,1714805449389,-500.0,0.00041095,30]
[325391439,1714805449398,-2640.1,0.00041095,30]
[325391440,1714805449408,-500.0,0.00041095,30]
[325391441,1714805449418,-909.27,0.00041095,30]
[325391442,1714805449429,-1138.64,0.00041095,30]
[325391443,1714805449439,-1089.38,0.00041095,30]
[325391444,1714805449448,-677.92,0.00041095,30]
[325391445,1714805449458,-1740.46,0.00041095,30]
[325391446,1714805449468,-5961.16,0.00041095,30]
[325391447,1714805449477,-2296.55,0.00041095,30]
[325391448,1714805449488,-500.0,0.00041095,30]
[325391449,1714805449498,-1487.37,0.00041095,30]
[325391450,1714805449508,-588.88,0.00041095,30]
[325391451,1714805449518,-3474.84,0.00041095,30]
[325391452,1714805449528,-3314.59,0.00041095,30]
[325391453,1714805449538,-500.0,0.00041095,30]
[325391454,1714805449547,-500.0,0.00041095,30]
[325391455,1714805449558,-2097.36,0.00041095,30]
[325391456,1714805449568,-1976.92,0.00041095,30]
[325391457,1714805449578,-2327.58,0.00041095,30]
[325391458,1714805449588,-500.0,0.00041095,30]
[325391459,1714805449598,-1097.35,0.00041095,30]
[325391460,1714805449607,-500.0,0.00041095,30]
[325391461,1714805449618,-882.34,0.00041095,30]
[325391462,1714805449628,-574.31,0.00041095,30]
[325391463,1714805449637,-500.0,0.00041095,30]
[325391464,1714805449646,-150.0,0.00041095,30]
[325391465,1714805449656,-500.0,0.00041095,30]
[325391466,1714805449666,-500.0,0.00041095,30]
[325391467,1714805449675,-1565.47,0.00041095,30]
[325391468,1714805449685,-588.31,0.00041095,30]
[325391469,1714805449695,-741.8,0.00041095,30]
[325391470,1714805449704,-4600.42,0.00041095,21]
[325391471,1714805449714,-1067.51,0.00041095,30]
[325391472,1714805449723,-500.0,0.00041095,30]
[325391473,1714805449733,-1955.36,0.00041095,30]
[325391474,1714805449744,-3849.24,0.00041095,30]
[325391475,1714805449754,-1929.72,0.00041095,30]
[325391476,1714805449763,-500.0,0.00041095,30]
[325391477,1714805449772,-500.0,0.00041095,30]
[325391478,1714805449783,-763.24,0.00041095,30]
[325391479,1714805449792,-500.0,0.00041095,30]
[325391480,1714805449801,-767.45,0.00041095,30]
[325391481,1714805449811,-10807.12,0.00041095,30]
[325391482,1714805449820,-500.0,0.00041095,30]
[325391483,1714805449830,-2820.83,0.00041095,30]
[325391484,1714805449839,-3721.36,0.00041095,30]
[325391485,1714805449849,-4176.93,0.00041095,30]
[325391486,1714805449858,-2327.28,0.00041095,30]
[325391487,1714805449868,-500.0,0.00041095,30]
[325391488,1714805449878,-500.0,0.00041095,30]
[325391489,1714805449887,-637.90592974,0.00041095,30]
[325391490,1714805449897,-500.0,0.00041095,30]
[325391491,1714805449907,-1612.21,0.00041095,30]
[325391492,1714805449919,-468.5785329,0.00041095,30]
[325391493,1714805449929,-2171.47,0.00041095,30]
[325391494,1714805449938,-500.0,0.00041095,30]
[325391495,1714805449948,-8465.49,0.00041095,30]
[325391496,1714805449958,-1302.6,0.00041095,30]
[325391497,1714805449968,-3352.32,0.00041095,30]
[325391498,1714805449978,-4756.27,0.00041095,30]
[325391499,1714805449987,-500.0,0.00041095,30]
[325391500,1714805449999,-592.46,0.00041095,30]
[325391501,1714805450009,-556.50683878,0.00041095,30]
[325391502,1714805450019,-5345.68,0.00041095,30]
[325391503,1714805450029,-541.89,0.00041095,30]
[325391504,1714805450038,-500.0,0.00041095,30]
[325391505,1714805450047,-500.0,0.00041095,30]
[325391506,1714805450057,-577.01,0.00041095,30]
[325391507,1714805450067,-500.0,0.00041095,30]
[325391508,1714805450076,-500.0,0.00041095,30]
[325391509,1714805450086,-552.01,0.00041095,30]
[325391510,1714805450096,-3037.97,0.00041095,30]
[325391511,1714805450106,-500.0,0.00041095,30]
[325391512,1714805450115,-632.75,0.00041095,30]
[325391513,1714805450125,-889.93,0.00041095,30]
[325391514,1714805450134,-500.0,0.00041095,30]
[325391515,1714805450143,-216.48355915,0.00041095,30]
[325391516,1714805450153,-8985.44,0.00041095,30]
[325391517,1714805450162,-1421.26,0.00041095,30]
[325391518,1714805450171,-40432.42,0.00041095,30]
[325391519,1714805450181,-1123.13,0.00041095,30]
[325391520,1714805450190,-1399.68,0.00041095,30]
[325391521,1714805450199,-500.0,0.00041095,30]
[325391522,1714805450208,-1988.33,0.00041095,30]
[325391523,1714805450218,-6449.42,0.00041095,30]
[325391524,1714805450227,-500.0,0.00041095,30]
[325391525,1714805450547,-7630.89,0.00041095,30]
[325391526,1714805450563,-9386.86,0.00041095,30]
[325391527,1714805450573,-1607.74,0.00041095,30]
[325391528,1714805450582,-500.0,0.00041095,30]
[325391529,1714805450592,-6113.1,0.00041095,30]
[325391530,1714805450602,-1228.33,0.00041095,30]
[325391531,1714805450612,-500.0,0.00041095,30]
[325391532,1714805450622,-1187.64,0.00041095,30]
[325391533,1714805450631,-500.0,0.00041095,30]
[325391534,1714805450641,-2035.1,0.00041095,30]
[325391535,1714805450652,-500.0,0.00041095,30]
[325391536,1714805450662,-887.93,0.00041095,30]
[325391537,1714805450672,-867.61,0.00041095,30]
[325391538,1714805450682,-500.0,0.00041095,30]
[325391539,1714805450692,-615.58,0.00041095,30]
[325391540,1714805450702,-1851.91,0.00041095,30]
[325391541,1714805450712,-500.0,0.00041095,30]
[325391542,1714805450722,-10195.58,0.00041095,30]
[325391543,1714805450731,-3664.99,0.00041095,30]
[325391544,1714805450741,-500.0,0.00041095,30]
[325391545,1714805450752,-890.3,0.00041095,30]
[325391546,1714805450762,-1313.4,0.00041095,30]
[325391547,1714805450772,-3036.55,0.00041095,30]
[325391548,1714805450782,-1610.64,0.00041095,30]
[325391549,1714805450791,-500.0,0.00041095,30]
[325391550,1714805450801,-501.56,0.00041095,30]
[325391551,1714805450810,-500.0,0.00041095,30]
[325391552,1714805450820,-544.03,0.00041095,30]
[325391553,1714805450830,-1477.23,0.00041095,30]
[325391554,1714805450840,-202.72304654,0.00041095,30]
[325391555,1714805450849,-503.72313738,0.00041095,30]
[325391556,1714805450859,-6864.28,0.00041095,30]
[325391557,1714805450868,-500.0,0.00041095,30]
[325391558,1714805450878,-500.0,0.00041095,30]
[325391559,1714805450888,-6220.35,0.00041095,30]
[325391560,1714805450897,-1412.78,0.00041095,30]
[325391561,1714805450907,-500.38,0.00041095,30]
[325391562,1714805450920,-500.0,0.00041095,30]
[325391563,1714805450929,-2623.88,0.00041095,30]
[325391564,1714805450939,-1495.93,0.00041095,30]
[325391565,1714805450948,-1468.94,0.00041095,30]
[325391566,1714805450959,-500.0,0.00041095,30]
[325391567,1714805450968,-500.0,0.00041095,30]
[325391568,1714805450978,-632.57,0.00041095,30]
[325391569,1714805450987,-575.04,0.00041095,30]
[325391570,1714805450999,-500.0,0.00041095,30]
[325391571,1714805451008,-1826.78,0.00041095,30]
[325391572,1714805451018,-512.09652325,0.00041095,30]
[325391573,1714805451027,-597.32,0.00041095,30]
[325391574,1714805451036,-9341.8,0.00041095,30]
[325391575,1714805451046,-5377.79,0.00041095,30]
[325391576,1714805451056,-500.0,0.00041095,30]
[325391577,1714805451066,-2293.2,0.00041095,30]
[325391578,1714805451076,-965.8,0.00041095,30]
[325391579,1714805451086,-10960.32,0.00041095,30]
[325391580,1714805451095,-512.33,0.00041095,30]
[325391581,1714805451105,-1917.17,0.00041095,30]
[325391582,1714805451115,-500.0,0.00041095,30]
[325391583,1714805451124,-500.0,0.00041095,30]
[325391584,1714805451134,-458.28402381,0.00041095,30]
[325391585,1714805451143,-500.0,0.00041095,30]
[325391586,1714805451152,-3883.5,0.00041095,30]
[325391587,1714805451162,-3230.91,0.00041095,30]
[325391588,1714805451171,-848.82,0.00041095,30]
[325391589,1714805451181,-2567.8,0.00041095,30]
[325391590,1714805451191,-500.0,0.00041095,30]
[325391591,1714805451201,-1179.66,0.00041095,30]
[325391592,1714805451211,-1160.82,0.00041095,30]
[325391593,1714805451221,-792.4,0.00041095,30]
[325391594,1714805451231,-2205.85,0.00041095,30]
[325391595,1714805451241,-500.0,0.00041095,30]
[325391596,1714805451250,-541.47,0.00041095,30]
[325391597,1714805451259,-300.0,0.00041095,7]
[325391598,1714805451269,-160.00995268,0.00041095,2]
[325391599,1714805451279,-724.88,0.00041095,30]
[325391600,1714805451288,-741.04,0.00041095,30]
[325391601,1714805451297,-602.54,0.00041095,30]
[325391602,1714805451307,-26512.57,0.00041095,30]
[325391603,1714805451316,-500.0,0.00041095,30]
[325391604,1714805451325,-4405.59,0.00041095,30]
[325391605,1714805451335,-1082.51,0.00041095,30]
[325391606,1714805451344,-2005.27,0.00041095,30]
[325391607,1714805451354,-2469.14,0.00041095,30]
[325391608,1714805451364,-157.0,0.00041096,2]
[325391609,1714805451374,-155.52891643,0.00041144,30]
[325391610,1714805451383,-155.52891643,0.00041174,30]
[325391611,1714805451393,-150.0,0.00041227,2]
[325391612,1714805451403,-500.0,0.00041233,30]
[325391613,1714805451412,-6474.31570664,0.00041259,15]
[325391614,1714805451424,-248.48556772,0.00041269,2]
[325391615,1714805451434,-602.98652288,0.00041269,2]
[325391616,1714805451443,-150.0,0.00041274,2]
[325391617,1714805451453,-150.0,0.00041302,2]
[325391618,1714805451462,-267.451,0.00041346,30]
[325391619,1714805451472,-500.0,0.00041347,30]
[325391620,1714805451481,-675.04,0.00041369,31]
[325391621,1714805451490,-500.0,0.00041369,31]
[325391622,1714805451500,-500.0,0.00041369,31]
[325391623,1714805451509,-735.92,0.00041369,31]
[325391624,1714805451519,-509.82,0.00041369,31]
[325391625,1714805451528,-500.0,0.00041369,31]
[325391626,1714805451538,-500.0,0.00041369,31]
[325391627,1714805451547,-500.0,0.00041369,31]
[325391628,1714805451557,-899.89,0.00041369,31]
[325391629,1714805451566,-500.0,0.00041369,31]
[325391630,1714805451576,-500.0,0.00041369,31]
[325391631,1714805451585,-500.0,0.00041369,2]
[325391632,1714805451594,-839.13,0.00041369,31]
[325391633,1714805451604,-575.72,0.00041369,31]
[325391634,1714805451613,-477.52381983,0.00041369,31]
[325391635,1714805451622,-500.0,0.00041369,31]
[325391636,1714805451631,-500.0,0.00041369,31]
[325391637,1714805451641,-552.74,0.00041369,31]
[325391638,1714805451650,-675.16,0.00041369,31]
[325391639,1714805451660,-500.0,0.00041369,31]
[325391640,1714805451669,-500.0,0.00041369,31]
[325391641,1714805451679,-500.0,0.00041369,31]
[325391642,1714805451688,-500.0,0.00041369,31]
[325391643,1714805451698,-500.0,0.00041369,31]
[325391644,1714805451707,-943.78,0.00041369,31]
[325391645,1714805451716,-500.0,0.00041369,31]
[325391646,1714805451727,-579.0,0.00041369,31]
[325391647,1714805451736,-500.0,0.00041369,31]
[325391648,1714805451746,-619.84,0.00041369,31]
[325391649,1714805451755,-500.0,0.00041369,31]
[325391650,1714805451765,-523.53,0.00041369,31]
[325391651,1714805451774,-500.0,0.00041369,31]
[325391652,1714805451784,-1092.03,0.00041369,31]
[325391653,1714805451794,-500.0,0.00041369,31]
[325391654,1714805451803,-500.0,0.00041369,31]
[325391655,1714805451812,-500.0,0.00041369,31]
[325391656,1714805451821,-500.0,0.00041369,31]
[325391657,1714805451831,-500.0,0.00041369,31]
[325391658,1714805451840,-882.05,0.00041369,31]
[325391659,1714805451850,-500.0,0.00041369,31]
[325391660,1714805451859,-510.12344609,0.00041369,31]
[325391661,1714805451869,-500.0,0.00041369,31]
[325391662,1714805451878,-500.0,0.00041369,31]
[325391663,1714805451888,-554.78,0.00041369,31]
[325391664,1714805451897,-1522.62,0.00041369,31]
[325391665,1714805451906,-500.0,0.00041369,31]
[325391666,1714805451917,-500.0,0.00041369,31]
[325391667,1714805451928,-589.19237902,0.00041369,31]
[325391668,1714805451938,-500.0,0.00041369,30]
[325391669,1714805451947,-611.3,0.00041369,31]
[325391670,1714805451956,-500.0,0.00041369,31]
[325391671,1714805451966,-1413.54,0.00041369,31]
[325391672,1714805451975,-500.0,0.00041369,31]
[325391673,1714805451984,-789.42,0.00041369,31]
[325391674,1714805451996,-500.0,0.00041369,31]
[325391675,1714805452005,-500.0,0.00041369,31]
[325391676,1714805452015,-608.82059447,0.00041369,31]
[325391677,1714805452024,-983.92,0.00041369,31]
[325391678,1714805452033,-722.72,0.00041369,31]
[325391679,1714805452042,-500.0,0.00041369,31]
[325391680,1714805452052,-1368.8,0.00041369,31]
[325391681,1714805452062,-500.0,0.00041369,31]
[325391682,1714805452072,-500.0,0.00041369,31]
[325391683,1714805452082,-281.32173346,0.00041369,30]
[325391684,1714805452091,-1450.19,0.00041369,31]
[325391685,1714805452100,-500.0,0.00041369,31]
[325391686,1714805452110,-500.0,0.00041369,31]
[325391687,1714805452119,-1344.58,0.00041369,31]
[325391688,1714805452128,-500.0,0.00041369,31]
[325391689,1714805452138,-970.95,0.00041369,31]
[325391690,1714805452148,-500.0,0.00041369,31]
[325391691,1714805452157,-500.0,0.00041369,31]
[325391692,1714805452166,-500.0,0.00041369,31]
[325391693,1714805452176,-941.8,0.00041369,31]
[325391694,1714805452185,-500.0,0.00041369,31]
[325391695,1714805452194,-614.66,0.00041369,31]
[325391696,1714805452203,-500.0,0.00041369,31]
[325391697,1714805452212,-500.0,0.00041369,31]
[325391698,1714805452222,-500.0,0.00041369,31]
[325391699,1714805452231,-592.51,0.00041369,31]
[325391700,1714805452240,-174.7276642,0.00041369,31]
[325391701,1714805452250,-1126.86,0.00041369,31]
[325391702,1714805452259,-561.73257547,0.00041369,31]
[325391703,1714805452268,-500.0,0.00041369,31]
[325391704,1714805452277,-707.09,0.00041369,31]
[325391705,1714805452287,-500.0,0.00041369,31]
[325391706,1714805452296,-714.0,0.00041369,31]
[325391707,1714805452305,-500.0,0.00041369,31]
[325391708,1714805452313,-1049.17,0.00041369,31]
[325391709,1714805452323,-630.83,0.00041369,31]
[325391710,1714805452332,-539.0,0.00041369,31]
[325391711,1714805452341,-500.0,0.00041369,31]
[325391712,1714805452350,-500.0,0.00041369,31]
[325391713,1714805452359,-500.0,0.00041369,31]
[325391714,1714805452368,-692.03,0.00041369,31]
[325391715,1714805452377,-500.0,0.00041369,31]
[325391716,1714805452387,-500.0,0.00041369,31]
[325391717,1714805452396,-1003.37,0.00041369,31]
[325391718,1714805452405,-500.0,0.00041369,31]
[325391719,1714805452415,-500.0,0.00041369,31]
[325391720,1714805452425,-500.0,0.00041369,31]
[325391721,1714805452434,-500.0,0.00041369,31]
[325391722,1714805452444,-500.0,0.00041369,31]
[325391723,1714805452453,-850.26,0.00041369,31]
[325391724,1714805452463,-688.9,0.00041369,31]
[325391725,1714805452472,-669.34,0.00041369,31]
[325391726,1714805452482,-500.0,0.00041369,31]
[325391727,1714805452491,-500.0,0.00041369,31]
[325391728,1714805452501,-500.0,0.00041369,31]
[325391729,1714805452511,-500.0,0.00041369,31]
[325391730,1714805452520,-817.07,0.00041369,31]
[325391731,1714805452529,-547.54,0.00041369,31]
[325391732,1714805452539,-500.0,0.00041369,31]
[325391733,1714805452548,-874.42,0.00041369,31]
[325391734,1714805452558,-500.0,0.00041369,31]
[325391735,1714805452567,-1504.02,0.00041369,31]
[325391736,1714805452577,-500.0,0.00041369,31]
[325391737,1714805452586,-500.0,0.00041369,31]
[325391738,1714805452595,-1045.01,0.00041369,31]
[325391739,1714805452604,-500.0,0.00041369,31]
[325391740,1714805452614,-627.16473793,0.00041369,31]
[325391741,1714805452623,-500.0,0.00041369,31]
[325391742,1714805452633,-1325.93,0.00041369,31]
[325391743,1714805452643,-1806.6,0.00041369,31]
[325391744,1714805452652,-500.0,0.00041369,31]
[325391745,1714805452661,-500.0,0.00041369,31]
[325391746,1714805452671,-671.82,0.00041369,31]
[325391747,1714805452680,-500.0,0.00041369,31]
[325391748,1714805452691,-500.0,0.00041369,31]
[325391749,1714805452700,-1358.69,0.00041369,31]
[325391750,1714805452710,-606.97016643,0.00041369,31]
[325391751,1714805452719,-1625.59,0.00041369,31]
[325391752,1714805452730,-959.71,0.00041369,31]
[325391753,1714805452740,-757.06,0.00041369,31]
[325391754,1714805452750,-500.0,0.00041369,31]
[325391755,1714805452759,-326.98648305,0.00041369,31]
[325391756,1714805452769,-1205.38,0.00041369,31]
[325391757,1714805452778,-500.0,0.00041369,31]
[325391758,1714805452788,-500.0,0.00041369,31]
[325391759,1714805452798,-1885.1,0.00041369,31]
[325391760,1714805452808,-775.82,0.00041369,31]
[325391761,1714805452818,-500.0,0.00041369,31]
[325391762,1714805452828,-500.0,0.00041369,31]
[325391763,1714805452837,-526.95,0.00041369,31]
[325391764,1714805452848,-500.0,0.00041369,31]
[325391765,1714805452858,-892.19,0.00041369,31]
[325391766,1714805452868,-1068.75,0.00041369,31]
[325391767,1714805452963,-500.0,0.00041369,31]
[325391768,1714805452973,-500.0,0.00041369,31]
[325391769,1714805452983,-523.77,0.00041369,31]
[325391770,1714805452994,-995.07,0.00041369,31]
[325391771,1714805453004,-378.42932987,0.00041369,31]
[325391772,1714805453014,-500.0,0.00041369,31]
[325391773,1714805453023,-500.0,0.00041369,31]
[325391774,1714805453032,-1090.35,0.00041369,31]
[325391775,1714805453042,-500.0,0.00041369,31]
[325391776,1714805453051,-1238.66,0.00041369,31]
[325391777,1714805453060,-500.0,0.00041369,31]
[325391778,1714805453070,-500.0,0.00041369,31]
[325391779,1714805453079,-791.03,0.00041369,31]
[325391780,1714805453088,-500.0,0.00041369,31]
[325391781,1714805453097,-500.0,0.00041369,31]
[325391782,1714805453106,-500.0,0.00041369,31]
[325391783,1714805453116,-1391.72,0.00041369,31]
[325391784,1714805453126,-838.6,0.00041369,7]
[325391785,1714805453135,-500.0,0.00041369,31]
[325391786,1714805453144,-500.0,0.00041369,31]
[325391787,1714805453153,-751.74,0.00041369,31]
[325391788,1714805453163,-539.08,0.00041369,31]
[325391789,1714805453172,-500.0,0.00041369,31]
[325391790,1714805453181,-598.76,0.00041369,31]
[325391791,1714805453191,-500.0,0.00041369,31]
[325391792,1714805453200,-784.83,0.00041369,31]
[325391793,1714805453210,-1980.32,0.00041369,31]
[325391794,1714805453219,-500.0,0.00041369,31]
[325391795,1714805453228,-692.08,0.00041369,31]
[325391796,1714805453237,-500.0,0.00041369,31]
[325391797,1714805453247,-1053.78,0.00041369,31]
[325391798,1714805453256,-894.7,0.00041369,31]
[325391799,1714805453265,-1228.83,0.00041369,31]
[325391800,1714805453275,-1368.35,0.00041369,31]
[325391801,1714805453284,-500.0,0.00041369,31]
[325391802,1714805453294,-1149.66,0.00041369,31]
[325391803,1714805453303,-500.0,0.00041369,31]
[325391804,1714805453312,-165.25028904,0.00041369,31]
[325391805,1714805453321,-500.0,0.00041369,31]
[325391806,1714805453330,-823.08,0.00041369,31]
[325391807,1714805453340,-500.0,0.00041369,31]
[325391808,1714805453349,-500.0,0.00041369,31]
[325391809,1714805453359,-1072.75,0.00041369,31]
[325391810,1714805453368,-500.0,0.00041369,31]
[325391811,1714805453378,-1393.8,0.00041369,31]
[325391812,1714805453387,-500.0,0.00041369,31]
[325391813,1714805453397,-500.0,0.00041369,31]
[325391814,1714805453407,-849.39,0.00041369,31]
[325391815,1714805453416,-500.0,0.00041369,31]
[325391816,1714805453426,-1616.66,0.00041369,31]
[325391817,1714805453436,-500.0,0.00041369,31]
[325391818,1714805453446,-1731.52,0.00041369,31]
[325391819,1714805453456,-1264.21,0.00041369,31]
[325391820,1714805453466,-1031.31,0.00041369,31]
[325391821,1714805453475,-1935.49,0.00041369,31]
[325391822,1714805453487,-500.0,0.00041369,31]
[325391823,1714805453497,-1266.7,0.00041369,31]
[325391824,1714805453507,-506.76163644,0.00041369,31]
[325391825,1714805453518,-2238.25,0.00041369,31]
[325391826,1714805453527,-751.42,0.00041369,31]
[325391827,1714805453536,-500.0,0.00041369,31]
[325391828,1714805453546,-2109.17,0.00041369,31]
[325391829,1714805453555,-1745.04,0.00041369,31]
[325391830,1714805453565,-500.0,0.00041369,31]
[325391831,1714805453575,-500.0,0.00041369,31]
[325391832,1714805453585,-600.68,0.00041369,31]
[325391833,1714805453594,-264.50756042,0.00041369,31]
[325391834,1714805453603,-500.0,0.00041369,31]
[325391835,1714805453613,-1538.37,0.00041369,31]
[325391836,1714805453623,-2625.11,0.00041369,31]
[325391837,1714805453632,-1368.67,0.00041369,31]
[325391838,1714805453641,-503.00490587,0.00041369,31]
[325391839,1714805453651,-1117.26,0.00041369,31]
[325391840,1714805453660,-1275.97,0.00041369,31]
[325391841,1714805453670,-500.0,0.00041369,31]
[325391842,1714805453679,-797.0,0.00041369,31]
[325391843,1714805453688,-2447.9,0.00041369,31]
[325391844,1714805453698,-500.0,0.00041369,31]
[325391845,1714805453707,-1027.27,0.00041369,31]
[325391846,1714805453717,-817.5,0.00041369,31]
[325391847,1714805453726,-844.52,0.00041369,31]
[325391848,1714805453736,-2173.42,0.00041369,31]
[325391849,1714805453746,-1891.91,0.00041369,31]
[325391850,1714805453756,-1228.43,0.00041369,31]
[325391851,1714805453767,-605.18,0.00041369,31]
[325391852,1714805453776,-500.0,0.00041369,31]
[325391853,1714805453786,-1354.78,0.00041369,31]
[325391854,1714805453795,-1409.46,0.00041369,31]
[325391855,1714805453805,-504.41793732,0.00041369,31]
[325391856,1714805453814,-589.03,0.00041369,31]
[325391857,1714805453823,-500.0,0.00041369,31]
[325391858,1714805453833,-714.65,0.00041369,31]
[325391859,1714805453842,-2121.23,0.00041369,31]
[325391860,1714805453852,-500.0,0.00041369,31]
[325391861,1714805453861,-500.0,0.00041369,31]
[325391862,1714805453870,-500.0,0.00041369,31]
[325391863,1714805453879,-500.0,0.00041369,31]
[325391864,1714805453889,-500.0,0.00041369,31]
[325391865,1714805453899,-2505.77,0.00041369,31]
[325391866,1714805453908,-1053.51,0.00041369,31]
[325391867,1714805453922,-1362.34,0.00041369,31]
[325391868,1714805453931,-1180.14,0.00041369,31]
[325391869,1714805453941,-623.35,0.00041369,31]
[325391870,1714805453951,-500.0,0.00041369,31]
[325391871,1714805453961,-500.0,0.00041369,31]
[325391872,1714805453970,-561.55,0.00041369,31]
[325391873,1714805453980,-666.65,0.00041369,31]